[Event "FIDE Women's Grand Swiss 2023"]
[Site "Villa Marina, Douglas, Isle of Man, Isle Of Man"]
[Date "2023.10.26"]
[Round "2.22"]
[White "Aulia, Medina Warda"]
[Black "Vantika, Agrawal"]
[Result "1-0"]
[TimeControl "40/90 + 30 + 30s/move"]
[WhiteFideId "7101570"]
[BlackFideId "25050389"]
[WhiteElo "2362"]
[BlackElo "2435"]

1. e4 {[%clk 01:30:57]} {[%emt 00:00:02]} c5 {[%clk 01:30:47]} {[%emt
00:00:14]} 2. Nf3 {[%clk 01:31:21]} {[%emt 00:00:05]} d6 {[%clk 01:31:14]}
{[%emt 00:00:03]} 3. d4 {[%clk 01:31:45]} {[%emt 00:00:06]} cxd4 {[%clk
01:31:39]} {[%emt 00:00:05]} 4. Nxd4 {[%clk 01:32:11]} {[%emt 00:00:04]} Nf6
{[%clk 01:32:05]} {[%emt 00:00:04]} 5. Nc3 {[%clk 01:32:36]} {[%emt 00:00:06]}
a6 {[%clk 01:32:32]} {[%emt 00:00:02]} 6. Be3 {[%clk 01:33:00]} {[%emt
00:00:05]} e5 {[%clk 01:32:42]} {[%emt 00:00:21]} 7. Nf3 {[%clk 01:33:24]}
{[%emt 00:00:06]} Be7 {[%clk 01:31:26]} {[%emt 00:01:46]} 8. Bc4 {[%clk
01:33:41]} {[%emt 00:00:13]} Be6 {[%clk 01:27:52]} {[%emt 00:04:04]} 9. Bb3
{[%clk 01:33:57]} {[%emt 00:00:14]} Nbd7 {[%clk 01:09:48]} {[%emt 00:18:35]} 10.
O-O {[%clk 01:29:32]} {[%emt 00:04:54]} Rc8 {[%clk 01:06:57]} {[%emt 00:03:22]}
11. Re1 {[%clk 01:21:24]} {[%emt 00:08:37]} Qc7 {[%clk 01:02:11]} {[%emt
00:05:16]} 12. h3 {[%clk 01:16:05]} {[%emt 00:05:49]} b5 {[%clk 00:58:14]}
{[%emt 00:04:28]} 13. Ng5 {[%clk 01:08:53]} {[%emt 00:07:41]} Bc4 {[%clk
00:53:27]} {[%emt 00:05:17]} 14. f4 {[%clk 01:02:13]} {[%emt 00:07:10]} O-O
{[%clk 00:43:22]} {[%emt 00:10:35]} 15. Nf3 {[%clk 00:58:57]} {[%emt 00:03:46]}
Rfe8 {[%clk 00:38:30]} {[%emt 00:05:22]} 16. a3 {[%clk 00:51:45]} {[%emt
00:07:43]} Qb7 {[%clk 00:29:52]} {[%emt 00:09:07]} 17. Nd2 {[%clk 00:47:23]}
{[%emt 00:04:52]} exf4 {[%clk 00:23:51]} {[%emt 00:06:32]} 18. Bxf4 {[%clk
00:46:28]} {[%emt 00:01:24]} Ne5 {[%clk 00:23:38]} {[%emt 00:00:43]} 19. Nf3
{[%clk 00:45:51]} {[%emt 00:01:07]} Ng6 {[%clk 00:18:09]} {[%emt 00:05:59]} 20.
Bg3 {[%clk 00:44:43]} {[%emt 00:01:38]} Bf8 {[%clk 00:14:16]} {[%emt 00:04:24]}
21. Nd2 {[%clk 00:43:25]} {[%emt 00:01:47]} Ne5 {[%clk 00:08:27]} {[%emt
00:06:19]} 22. Nf3 {[%clk 00:43:22]} {[%emt 00:00:33]} Ng6 {[%clk 00:05:40]}
{[%emt 00:03:17]} 23. Nd2 {[%clk 00:43:48]} {[%emt 00:00:04]} h6 {[%clk
00:05:01]} {[%emt 00:01:09]} 24. Kh1 {[%clk 00:38:47]} {[%emt 00:05:31]} Re6
{[%clk 00:03:33]} {[%emt 00:01:58]} 25. Bxc4 {[%clk 00:38:55]} {[%emt
00:00:22]} bxc4 {[%clk 00:03:59]} {[%emt 00:00:05]} 26. Rb1 {[%clk 00:39:20]}
{[%emt 00:00:05]} Qc6 {[%clk 00:03:20]} {[%emt 00:01:09]} 27. Qf3 {[%clk
00:38:10]} {[%emt 00:01:39]} Ne5 {[%clk 00:02:14]} {[%emt 00:01:37]} 28. Qf2
{[%clk 00:38:24]} {[%emt 00:00:15]} Rce8 {[%clk 00:01:16]} {[%emt 00:01:28]} 29.
Qd4 {[%clk 00:38:20]} {[%emt 00:00:35]} Nfd7 {[%clk 00:01:18]} {[%emt
00:00:28]} 30. Nd5 {[%clk 00:38:11]} {[%emt 00:00:39]} g6 {[%clk 00:00:41]}
{[%emt 00:01:07]} 31. Qf2 {[%clk 00:33:43]} {[%emt 00:04:57]} Bg7 {[%clk
00:00:51]} {[%emt 00:00:21]} 32. Rf1 {[%clk 00:33:54]} {[%emt 00:00:18]} Nf6
{[%clk 00:00:36]} {[%emt 00:00:46]} 33. Bxe5 {[%clk 00:32:46]} {[%emt
00:01:37]} dxe5 {[%clk 00:01:00]} {[%emt 00:00:06]} 34. Qa7 {[%clk 00:32:52]}
{[%emt 00:00:24]} Rd6 {[%clk 00:00:34]} {[%emt 00:00:56]} 35. Rbd1 {[%clk
00:30:40]} {[%emt 00:02:42]} Nd7 {[%clk 00:00:34]} {[%emt 00:00:31]} 36. Nb1
{[%clk 00:30:25]} {[%emt 00:00:45]} Bf8 {[%clk 00:00:32]} {[%emt 00:00:32]} 37.
Nbc3 {[%clk 00:29:51]} {[%emt 00:01:04]} Kg7 {[%clk 00:00:33]} {[%emt
00:00:28]} 38. Rf3 {[%clk 00:28:01]} {[%emt 00:02:19]} Qc5 {[%clk 00:00:32]}
{[%emt 00:00:32]} 39. Qxc5 {[%clk 00:28:22]} {[%emt 00:00:10]} Nxc5 {[%clk
00:00:58]} {[%emt 00:00:04]} 40. Rdf1 {[%clk 00:28:48]} {[%emt 00:00:03]} f5
{[%clk 00:00:43]} {[%emt 00:00:46]} 41. exf5 {[%clk 00:28:44]} {[%emt
00:00:34]} e4 {[%clk 00:22:04]} {[%emt 00:09:09]} 42. Rg3 {[%clk 00:58:32]}
{[%emt 00:00:41]} Rb8 {[%clk 00:20:20]} {[%emt 00:02:15]} 43. Ne3 {[%clk
00:55:56]} {[%emt 00:03:06]} g5 {[%clk 00:17:54]} {[%emt 00:02:55]} 44. Nxc4
{[%clk 00:56:14]} {[%emt 00:00:12]} Rd4 {[%clk 00:17:44]} {[%emt 00:00:40]} 45.
b3 {[%clk 00:56:24]} {[%emt 00:00:21]} Be7 {[%clk 00:15:57]} {[%emt 00:02:17]}
46. Re3 {[%clk 00:52:48]} {[%emt 00:04:06]} Bf6 {[%clk 00:12:28]} {[%emt
00:03:59]} 47. Ne2 {[%clk 00:53:01]} {[%emt 00:00:17]} Rdd8 {[%clk 00:06:00]}
{[%emt 00:06:58]} 48. b4 {[%clk 00:53:20]} {[%emt 00:00:10]} Na4 {[%clk
00:03:37]} {[%emt 00:02:53]} 49. Rxe4 {[%clk 00:53:42]} {[%emt 00:00:08]} Re8
{[%clk 00:04:01]} {[%emt 00:00:07]} 50. Ng3 {[%clk 00:53:49]} {[%emt 00:00:22]}
Rxe4 {[%clk 00:04:27]} {[%emt 00:00:04]} 51. Nxe4 {[%clk 00:54:14]} {[%emt
00:00:04]} Rd8 {[%clk 00:04:13]} {[%emt 00:00:44]} 52. Ncd6 {[%clk 00:49:07]}
{[%emt 00:05:37]} Be5 {[%clk 00:02:44]} {[%emt 00:01:59]} 53. f6+ {[%clk
00:49:32]} {[%emt 00:00:05]} Kf8 {[%clk 00:03:06]} {[%emt 00:00:09]} 54. Nf5
{[%clk 00:49:52]} {[%emt 00:00:09]} Nc3 {[%clk 00:02:49]} {[%emt 00:00:48]} 55.
Nc5 {[%clk 00:48:59]} {[%emt 00:01:22]} Kf7 {[%clk 00:01:12]} {[%emt 00:02:06]}
56. Nxh6+ {[%clk 00:49:20]} {[%emt 00:00:09]} Kg6 {[%clk 00:01:27]} {[%emt
00:00:16]} 57. f7 {[%clk 00:45:59]} {[%emt 00:03:52]} Ne2 {[%clk 00:00:32]}
{[%emt 00:01:24]} 58. f8=Q {[%clk 00:43:52]} {[%emt 00:02:37]} Ng3+ {[%clk
00:00:35]} {[%emt 00:00:28]} 59. Kg1 {[%emt 00:00:35]} Ne2+ {[%clk 00:00:33]}
60. Kf2 {[%clk 00:44:35]} {[%emt 00:00:13]} Rxf8+ {[%clk 00:00:48]} {[%emt
00:00:15]} 61. Kxe2 {[%clk 00:45:02]} {[%emt 00:00:03]} Rxf1 {[%clk 00:00:35]}
{[%emt 00:00:43]} 62. Kxf1 {[%clk 00:45:24]} {[%emt 00:00:08]} Kxh6 {[%clk
00:00:58]} {[%emt 00:00:07]} 63. Nxa6 {[%clk 00:45:51]} {[%emt 00:00:03]} Kg6
{[%clk 00:00:32]} {[%emt 00:00:57]} 64. b5 {[%clk 00:46:15]} {[%emt 00:00:04]}
Bd4 {[%clk 00:00:45]} {[%emt 00:00:17]} 65. c4 {[%clk 00:45:38]} {[%emt
00:01:08]} Kf5 {[%clk 00:01:11]} {[%emt 00:00:05]} 66. c5 {[%clk 00:45:51]}
{[%emt 00:00:16]} 1-0

[Event "FIDE Women's Grand Swiss 2023"]
[Site "Villa Marina, Douglas, Isle of Man, Isle Of Man"]
[Date "2023.10.26"]
[Round "2.23"]
[White "Gomez Barrera, Javiera Belen"]
[Black "Injac, Teodora"]
[Result "0-1"]
[TimeControl "40/90 + 30 + 30s/move"]
[WhiteFideId "3418723"]
[BlackFideId "932400"]
[WhiteElo "2266"]
[BlackElo "2426"]

1. e4 {[%clk 01:30:58]} {[%emt 00:00:02]} e5 {[%clk 01:30:56]} {[%emt
00:00:05]} 2. Nf3 {[%clk 01:31:20]} {[%emt 00:00:07]} Nc6 {[%clk 01:31:21]}
{[%emt 00:00:05]} 3. Bc4 {[%clk 01:31:41]} {[%emt 00:00:09]} Bc5 {[%clk
01:31:23]} {[%emt 00:00:27]} 4. d3 {[%clk 01:31:09]} {[%emt 00:01:03]} Nf6
{[%clk 01:31:25]} {[%emt 00:00:28]} 5. O-O {[%clk 01:30:16]} {[%emt 00:01:22]}
d6 {[%clk 01:25:02]} {[%emt 00:06:53]} 6. c3 {[%clk 01:30:27]} {[%emt
00:00:21]} h6 {[%clk 01:24:52]} {[%emt 00:00:39]} 7. Re1 {[%clk 01:30:07]}
{[%emt 00:00:50]} a6 {[%clk 01:22:59]} {[%emt 00:02:23]} 8. b4 {[%clk
01:24:40]} {[%emt 00:05:58]} Ba7 {[%clk 01:21:31]} {[%emt 00:01:57]} 9. a4
{[%clk 01:24:52]} {[%emt 00:00:18]} O-O {[%clk 01:19:44]} {[%emt 00:02:16]} 10.
Ra2 {[%clk 01:22:22]} {[%emt 00:03:01]} Ne7 {[%clk 01:12:43]} {[%emt 00:07:31]}
11. a5 {[%clk 01:14:10]} {[%emt 00:08:42]} Ng6 {[%clk 01:11:57]} {[%emt
00:01:15]} 12. Bb3 {[%clk 01:01:27]} {[%emt 00:13:14]} Re8 {[%clk 01:05:14]}
{[%emt 00:07:12]} 13. c4 {[%clk 00:56:14]} {[%emt 00:05:44]} Nh7 {[%clk
00:53:27]} {[%emt 00:12:17]} 14. Nc3 {[%clk 00:43:29]} {[%emt 00:13:15]} c6
{[%clk 00:36:06]} {[%emt 00:17:50]} 15. Na4 {[%clk 00:28:59]} {[%emt 00:15:01]}
Bg4 {[%clk 00:17:16]} {[%emt 00:19:20]} 16. h3 {[%clk 00:28:26]} {[%emt
00:01:03]} Bxf3 {[%clk 00:17:11]} {[%emt 00:00:35]} 17. Qxf3 {[%clk 00:28:49]}
{[%emt 00:00:07]} Ng5 {[%clk 00:17:39]} {[%emt 00:00:02]} 18. Qg4 {[%clk
00:19:15]} {[%emt 00:10:05]} Ne6 {[%clk 00:17:45]} {[%emt 00:00:23]} 19. Be3
{[%clk 00:13:18]} {[%emt 00:06:26]} Nd4 {[%clk 00:15:00]} {[%emt 00:03:16]} 20.
Bd1 {[%clk 00:12:40]} {[%emt 00:01:08]} c5 {[%clk 00:09:57]} {[%emt 00:05:34]}
21. bxc5 {[%clk 00:10:57]} {[%emt 00:02:12]} Qxa5 {[%clk 00:09:50]} {[%emt
00:00:37]} 22. Bd2 {[%clk 00:09:52]} {[%emt 00:01:36]} Qd8 {[%clk 00:10:19]}
{[%emt 00:00:01]} 23. cxd6 {[%clk 00:08:46]} {[%emt 00:01:36]} Qxd6 {[%clk
00:08:49]} {[%emt 00:01:59]} 24. Nc3 {[%clk 00:08:04]} {[%emt 00:01:12]} Ne7
{[%clk 00:07:45]} {[%emt 00:01:34]} 25. Nd5 {[%clk 00:04:54]} {[%emt 00:03:40]}
Nxd5 {[%clk 00:07:57]} {[%emt 00:00:18]} 26. exd5 {[%clk 00:05:23]} {[%emt
00:00:02]} Bc5 {[%clk 00:07:47]} {[%emt 00:00:39]} 27. Be3 {[%clk 00:02:30]}
{[%emt 00:03:23]} b5 {[%clk 00:05:47]} {[%emt 00:02:30]} 28. Ra1 {[%clk
00:01:56]} {[%emt 00:01:04]} Rf8 {[%clk 00:03:00]} {[%emt 00:03:17]} 29. Rb1
{[%clk 00:01:08]} {[%emt 00:01:18]} Rab8 {[%clk 00:02:25]} {[%emt 00:01:06]} 30.
Bd2 {[%clk 00:00:37]} {[%emt 00:01:00]} f5 {[%clk 00:01:58]} {[%emt 00:00:58]}
31. Qh5 {[%clk 00:00:36]} {[%emt 00:00:31]} b4 {[%clk 00:01:12]} {[%emt
00:01:15]} 32. Ba4 {[%clk 00:00:41]} {[%emt 00:00:25]} Rb7 {[%clk 00:00:49]}
{[%emt 00:00:53]} 33. Be3 {[%clk 00:00:36]} {[%emt 00:00:36]} Re7 {[%clk
00:00:42]} {[%emt 00:00:37]} 34. Bxd4 {[%clk 00:00:35]} {[%emt 00:00:30]} Bxd4
{[%clk 00:01:08]} {[%emt 00:00:03]} 35. Re2 {[%clk 00:00:46]} {[%emt 00:00:19]}
Kh7 {[%clk 00:00:47]} {[%emt 00:00:51]} 36. Qf3 {[%clk 00:00:51]} {[%emt
00:00:25]} Ref7 {[%clk 00:00:55]} {[%emt 00:00:23]} 37. Bb3 {[%clk 00:00:44]}
{[%emt 00:00:37]} g5 {[%clk 00:00:49]} {[%emt 00:00:35]} 38. Rc1 {[%clk
00:00:35]} {[%emt 00:00:38]} Rg7 {[%clk 00:00:52]} {[%emt 00:00:27]} 39. c5
{[%clk 00:00:35]} {[%emt 00:00:31]} Bxc5 {[%clk 00:01:10]} {[%emt 00:00:13]} 40.
Rec2 {[%clk 00:00:39]} {[%emt 00:00:26]} Rc7 {[%clk 00:00:45]} {[%emt
00:00:55]} 41. d4 {[%clk 00:24:51]} {[%emt 00:06:19]} exd4 {[%clk 00:31:13]}
{[%emt 00:00:01]} 42. Qd3 {[%clk 00:25:12]} {[%emt 00:00:09]} Rff7 {[%clk
00:22:52]} {[%emt 00:08:50]} 43. Ra1 {[%clk 00:16:30]} {[%emt 00:09:13]} Rf6
{[%clk 00:16:42]} {[%emt 00:06:40]} 44. Bc4 {[%clk 00:05:39]} {[%emt 00:11:21]}
Re7 {[%clk 00:15:51]} {[%emt 00:01:20]} 45. Rca2 {[%clk 00:05:13]} {[%emt
00:00:57]} Qe5 {[%clk 00:12:10]} {[%emt 00:04:11]} 46. g3 {[%clk 00:03:43]}
{[%emt 00:01:59]} Kg7 {[%clk 00:11:07]} {[%emt 00:01:33]} 47. Rxa6 {[%clk
00:03:48]} {[%emt 00:00:26]} Rxa6 {[%clk 00:08:23]} {[%emt 00:03:14]} 48. Rxa6
{[%clk 00:04:16]} {[%emt 00:00:02]} Bd6 {[%clk 00:08:26]} {[%emt 00:00:26]} 49.
Qf3 {[%clk 00:01:11]} {[%emt 00:03:35]} Rc7 {[%clk 00:03:36]} {[%emt 00:05:21]}
50. Qd3 {[%clk 00:01:30]} {[%emt 00:00:11]} f4 {[%clk 00:03:02]} {[%emt
00:01:04]} 51. g4 {[%clk 00:00:32]} {[%emt 00:01:28]} f3 {[%clk 00:03:04]}
{[%emt 00:00:28]} 52. Kf1 {[%clk 00:00:41]} {[%emt 00:00:20]} Qxd5 {[%clk
00:01:53]} {[%emt 00:01:42]} 0-1

[Event "FIDE Women's Grand Swiss 2023"]
[Site "Villa Marina, Douglas, Isle of Man, Isle Of Man"]
[Date "2023.10.26"]
[Round "2.24"]
[White "Fataliyeva, Ulviyya"]
[Black "Nassr, Lina"]
[Result "1-0"]
[TimeControl "40/90 + 30 + 30s/move"]
[WhiteFideId "13403052"]
[BlackFideId "7908075"]
[WhiteElo "2393"]
[BlackElo "2066"]

1. d4 {[%clk 01:30:57]} {[%emt 00:00:02]} Nf6 {[%clk 01:30:43]} {[%emt
00:00:17]} 2. Bf4 {[%clk 01:31:17]} {[%emt 00:00:10]} e6 {[%clk 01:30:15]}
{[%emt 00:00:59]} 3. e3 {[%clk 01:30:47]} {[%emt 00:00:58]} b6 {[%clk
01:26:24]} {[%emt 00:04:23]} 4. Qf3 {[%clk 01:26:44]} {[%emt 00:04:32]} d5
{[%clk 01:23:48]} {[%emt 00:03:07]} 5. Nd2 {[%clk 01:26:36]} {[%emt 00:00:37]}
Bb7 {[%clk 01:21:55]} {[%emt 00:02:22]} 6. Bb5+ {[%clk 01:25:50]} {[%emt
00:01:17]} Nbd7 {[%clk 01:17:30]} {[%emt 00:04:55]} 7. g4 {[%clk 01:25:31]}
{[%emt 00:00:49]} Bd6 {[%clk 01:11:31]} {[%emt 00:06:29]} 8. g5 {[%clk
01:14:52]} {[%emt 00:11:09]} Ne4 {[%clk 01:06:20]} {[%emt 00:05:40]} 9. Nxe4
{[%clk 01:12:42]} {[%emt 00:02:41]} dxe4 {[%clk 01:05:42]} {[%emt 00:01:08]} 10.
Qg3 {[%clk 01:07:26]} {[%emt 00:05:46]} Qe7 {[%clk 00:54:59]} {[%emt 00:11:13]}
11. O-O-O {[%clk 01:07:40]} {[%emt 00:00:16]} O-O-O {[%clk 00:50:56]} {[%emt
00:04:33]} 12. h4 {[%clk 01:04:46]} {[%emt 00:03:23]} a6 {[%clk 00:40:09]}
{[%emt 00:11:18]} 13. Bf1 {[%clk 01:02:36]} {[%emt 00:02:40]} e5 {[%clk
00:34:02]} {[%emt 00:06:37]} 14. dxe5 {[%clk 01:02:57]} {[%emt 00:00:09]} Nxe5
{[%clk 00:32:23]} {[%emt 00:02:09]} 15. Ne2 {[%clk 01:02:46]} {[%emt 00:00:41]}
Rhe8 {[%clk 00:28:51]} {[%emt 00:04:02]} 16. Nd4 {[%clk 01:01:02]} {[%emt
00:02:14]} g6 {[%clk 00:24:43]} {[%emt 00:04:39]} 17. Qh3+ {[%clk 01:00:26]}
{[%emt 00:01:05]} Qd7 {[%clk 00:22:48]} {[%emt 00:02:25]} 18. Qxd7+ {[%clk
00:48:23]} {[%emt 00:12:33]} Kxd7 {[%clk 00:19:20]} {[%emt 00:03:58]} 19. Bh3+
{[%clk 00:44:12]} {[%emt 00:04:40]} Ke7 {[%clk 00:19:43]} {[%emt 00:00:07]} 20.
Ne2 {[%clk 00:44:27]} {[%emt 00:00:16]} Nc4 {[%clk 00:11:36]} {[%emt 00:08:37]}
21. Nc3 {[%clk 00:43:49]} {[%emt 00:01:09]} Bxf4 {[%clk 00:10:02]} {[%emt
00:02:04]} 22. exf4 {[%clk 00:44:03]} {[%emt 00:00:16]} f5 {[%clk 00:07:33]}
{[%emt 00:02:59]} 23. h5 {[%clk 00:42:16]} {[%emt 00:02:16]} Kf8 {[%clk
00:02:03]} {[%emt 00:06:01]} 24. Rxd8 {[%clk 00:41:18]} {[%emt 00:01:28]} Rxd8
{[%clk 00:02:32]} {[%emt 00:00:01]} 25. hxg6 {[%clk 00:41:40]} {[%emt
00:00:07]} hxg6 {[%clk 00:02:28]} {[%emt 00:00:35]} 26. Bf1 {[%clk 00:42:03]}
{[%emt 00:00:07]} Rd4 {[%clk 00:00:47]} {[%emt 00:02:12]} 27. Rh7 {[%clk
00:39:59]} {[%emt 00:02:30]} Nd2 {[%clk 00:00:40]} {[%emt 00:00:39]} 28. Be2
{[%clk 00:39:16]} {[%emt 00:01:12]} Nf3 {[%clk 00:00:41]} {[%emt 00:00:31]} 29.
Rxc7 {[%clk 00:39:21]} {[%emt 00:00:25]} Bd5 {[%clk 00:00:34]} {[%emt
00:00:36]} 30. Bxf3 {[%clk 00:39:38]} {[%emt 00:00:13]} exf3 {[%clk 00:00:59]}
{[%emt 00:00:06]} 31. Rd7 {[%clk 00:39:57]} {[%emt 00:00:08]} Rxf4 {[%clk
00:00:46]} {[%emt 00:00:46]} 32. Nxd5 {[%clk 00:39:48]} {[%emt 00:00:40]} Rg4
{[%clk 00:01:01]} {[%emt 00:00:13]} 33. Kd2 {[%clk 00:39:13]} {[%emt 00:01:04]}
Rxg5 {[%clk 00:01:17]} {[%emt 00:00:16]} 34. Ke3 {[%clk 00:39:35]} {[%emt
00:00:07]} Rg1 {[%clk 00:00:58]} {[%emt 00:00:50]} 35. Kxf3 {[%clk 00:38:45]}
{[%emt 00:01:20]} 1-0

[Event "FIDE Women's Grand Swiss 2023"]
[Site "Villa Marina, Douglas, Isle of Man, Isle Of Man"]
[Date "2023.10.26"]
[Round "2.25"]
[White "Kanyamarala, Trisha"]
[Black "Milliet, Sophie"]
[Result "0-1"]
[TimeControl "40/90 + 30 + 30s/move"]
[WhiteFideId "45004722"]
[BlackFideId "623725"]
[WhiteElo "2184"]
[BlackElo "2391"]

1. d4 {[%clk 01:30:54]} {[%emt 00:00:05]} d5 {[%clk 01:30:54]} {[%emt
00:00:06]} 2. c4 {[%clk 01:31:09]} {[%emt 00:00:16]} e6 {[%clk 01:31:20]}
{[%emt 00:00:04]} 3. Nc3 {[%clk 01:31:20]} {[%emt 00:00:19]} c5 {[%clk
01:31:45]} {[%emt 00:00:05]} 4. e3 {[%clk 01:25:33]} {[%emt 00:06:16]} Nf6
{[%clk 01:31:44]} {[%emt 00:00:32]} 5. Nf3 {[%clk 01:25:21]} {[%emt 00:00:42]}
a6 {[%clk 01:31:46]} {[%emt 00:00:29]} 6. a4 {[%clk 01:14:37]} {[%emt
00:11:13]} Nc6 {[%clk 01:30:22]} {[%emt 00:01:54]} 7. Be2 {[%clk 01:12:07]}
{[%emt 00:03:00]} dxc4 {[%clk 01:29:33]} {[%emt 00:01:20]} 8. Bxc4 {[%clk
01:12:21]} {[%emt 00:00:15]} cxd4 {[%clk 01:26:40]} {[%emt 00:03:23]} 9. exd4
{[%clk 01:12:08]} {[%emt 00:00:43]} Be7 {[%clk 01:26:58]} {[%emt 00:00:12]} 10.
O-O {[%clk 01:11:47]} {[%emt 00:00:50]} O-O {[%clk 01:27:24]} {[%emt 00:00:04]}
11. Be3 {[%clk 01:04:22]} {[%emt 00:07:55]} Nb4 {[%clk 01:25:59]} {[%emt
00:01:56]} 12. Ne5 {[%clk 00:59:56]} {[%emt 00:04:55]} Bd7 {[%clk 01:25:39]}
{[%emt 00:00:49]} 13. Qf3 {[%clk 00:49:07]} {[%emt 00:11:21]} Bc6 {[%clk
01:10:29]} {[%emt 00:15:41]} 14. Nxc6 {[%clk 00:47:29]} {[%emt 00:02:07]} Nxc6
{[%clk 01:10:53]} {[%emt 00:00:06]} 15. Rfd1 {[%clk 00:46:45]} {[%emt
00:01:13]} Qa5 {[%clk 00:58:14]} {[%emt 00:13:09]} 16. d5 {[%clk 00:41:17]}
{[%emt 00:05:59]} Ne5 {[%clk 00:58:16]} {[%emt 00:00:27]} 17. Qe2 {[%clk
00:41:01]} {[%emt 00:00:46]} Qc7 {[%clk 00:49:31]} {[%emt 00:09:15]} 18. Ba2
{[%clk 00:33:55]} {[%emt 00:07:37]} Neg4 {[%clk 00:49:36]} {[%emt 00:00:24]} 19.
g3 {[%clk 00:33:13]} {[%emt 00:01:12]} Nxe3 {[%clk 00:49:47]} {[%emt 00:00:20]}
20. Qxe3 {[%clk 00:30:33]} {[%emt 00:03:10]} Bc5 {[%clk 00:49:13]} {[%emt
00:01:04]} 21. Qf3 {[%clk 00:23:34]} {[%emt 00:07:28]} Qb6 {[%clk 00:45:50]}
{[%emt 00:03:55]} 22. Rab1 {[%clk 00:21:32]} {[%emt 00:02:31]} Rad8 {[%clk
00:42:56]} {[%emt 00:03:24]} 23. Kg2 {[%clk 00:17:17]} {[%emt 00:04:44]} e5
{[%clk 00:39:08]} {[%emt 00:04:19]} 24. Rd2 {[%clk 00:15:44]} {[%emt 00:02:03]}
Qb4 {[%clk 00:34:53]} {[%emt 00:04:45]} 25. Re2 {[%clk 00:14:52]} {[%emt
00:01:22]} Bd4 {[%clk 00:34:12]} {[%emt 00:01:10]} 26. Qd3 {[%clk 00:08:35]}
{[%emt 00:06:47]} Rd6 {[%clk 00:30:52]} {[%emt 00:03:50]} 27. h3 {[%clk
00:04:13]} {[%emt 00:04:52]} Rfd8 {[%clk 00:26:03]} {[%emt 00:05:19]} 28. Rc2
{[%clk 00:03:07]} {[%emt 00:01:36]} g6 {[%clk 00:23:20]} {[%emt 00:03:13]} 29.
Qe2 {[%clk 00:01:34]} {[%emt 00:02:03]} R8d7 {[%clk 00:18:00]} {[%emt
00:05:50]} 30. Rbc1 {[%clk 00:01:09]} {[%emt 00:00:55]} Qa5 {[%clk 00:14:45]}
{[%emt 00:03:45]} 31. Qe1 {[%clk 00:00:44]} {[%emt 00:00: Ne4 {[%clk 00:00:38]} {[%emt 00:00:35]} Qxe1
{[%clk 00:07:56]} {[%emt 00:00:09]} 33. Rxe1 {[%clk 00:01:03]} {[%emt
00:00:04]} Nxe4 {[%clk 00:02:49]} {[%emt 00:05:38]} 34. Rxe4 {[%clk 00:01:31]}
{[%emt 00:00:01]} Rb6 {[%clk 00:03:11]} {[%emt 00:00:09]} 35. f4 {[%clk
00:01:04]} {[%emt 00:00:57]} f6 {[%clk 00:03:33]} {[%emt 00:00:08]} 36. Ree2
{[%clk 00:00:41]} {[%emt 00:00:53]} Rb4 {[%clk 00:03:43]} {[%emt 00:00:21]} 37.
Rc4 {[%clk 00:00:34]} {[%emt 00:00:37]} Rxb2 {[%clk 00:03:16]} {[%emt
00:00:57]} 38. Rxb2 {[%clk 00:00:36]} {[%emt 00:00:27]} Bxb2 {[%clk 00:03:45]}
{[%emt 00:00:01]} 39. fxe5 {[%clk 00:00:37]} {[%emt 00:00:29]} Bxe5 {[%clk
00:02:42]} {[%emt 00:01:33]} 40. Rc2 {[%clk 00:00:44]} {[%emt 00:00:24]} Kf8
{[%clk 00:02:18]} {[%emt 00:00:53]} 41. Rc8+ {[%clk 00:00:43]} {[%emt
00:00:31]} Ke7 {[%clk 00:02:06]} {[%emt 00:00:41]} 42. Rh8 {[%clk 00:23:50]}
{[%emt 00:07:23]} Kd6 {[%clk 00:31:43]} {[%emt 00:00:54]} 43. Kf3 {[%clk
00:22:19]} {[%emt 00:02:00]} Kc5 {[%clk 00:30:36]} {[%emt 00:01:37]} 44. g4
{[%clk 00:17:53]} {[%emt 00:04:57]} Kb4 {[%clk 00:29:14]} {[%emt 00:01:52]} 45.
Re8 {[%clk 00:17:51]} {[%emt 00:00:31]} Kxa4 {[%clk 00:18:33]} {[%emt
00:11:12]} 46. Ke4 {[%clk 00:17:24]} {[%emt 00:00:57]} Bd6 {[%clk 00:16:27]}
{[%emt 00:02:36]} 47. Ra8 {[%clk 00:16:44]} {[%emt 00:01:10]} a5 {[%clk
00:15:33]} {[%emt 00:01:24]} 48. Kd4 {[%clk 00:16:28]} {[%emt 00:00:45]} b5
{[%clk 00:14:18]} {[%emt 00:01:45]} 49. Bb1 {[%clk 00:16:07]} {[%emt 00:00:51]}
Kb4 {[%clk 00:13:38]} {[%emt 00:01:10]} 50. h4 {[%clk 00:16:12]} {[%emt
00:00:25]} a4 {[%clk 00:11:49]} {[%emt 00:02:19]} 51. h5 {[%clk 00:16:11]}
{[%emt 00:00:31]} a3 {[%clk 00:08:33]} {[%emt 00:03:46]} 52. Rc8 {[%clk
00:12:46]} {[%emt 00:03:55]} Be5 {[%clk 00:07:04]} {[%emt 00:02:00]} 53. Ke4
{[%clk 00:13:05]} {[%emt 00:00:10]} Rc7 {[%clk 00:07:18]} {[%emt 00:00:16]} 54.
Ra8 {[%clk 00:11:46]} {[%emt 00:01:50]} Rc4 {[%clk 00:07:12]} {[%emt 00:00:37]}
55. Kf3 {[%clk 00:12:07]} {[%emt 00:00:08]} Rf4+ {[%clk 00:07:00]} {[%emt
00:00:41]} 56. Ke3 {[%clk 00:12:19]} {[%emt 00:00:19]} Rxg4 {[%clk 00:07:20]}
{[%emt 00:00:10]} 57. hxg6 {[%clk 00:12:39]} {[%emt 00:00:10]} hxg6 {[%clk
00:07:46]} {[%emt 00:00:03]} 58. Ra6 {[%clk 00:12:52]} {[%emt 00:00:17]} Kb3
{[%clk 00:04:12]} {[%emt 00:04:05]} 59. d6 {[%clk 00:13:05]} {[%emt 00:00:17]}
Rd4 {[%clk 00:03:12]} {[%emt 00:01:29]} 60. Bxg6 {[%clk 00:12:43]} {[%emt
00:00:52]} Rxd6 {[%clk 00:03:36]} {[%emt 00:00:07]} 61. Ra8 {[%clk 00:12:52]}
{[%emt 00:00:21]} Kb2 {[%clk 00:03:32]} {[%emt 00:00:33]} 62. Bf7 {[%clk
00:13:10]} {[%emt 00:00:12]} b4 {[%clk 00:03:13]} {[%emt 00:00:50]} 63. Ra4
{[%clk 00:13:19]} {[%emt 00:00:21]} Rb6 {[%clk 00:01:52]} {[%emt 00:01:51]} 64.
Kd3 {[%clk 00:13:40]} {[%emt 00:00:09]} b3 {[%clk 00:02:02]} {[%emt 00:00:20]}
65. Re4 {[%clk 00:13:26]} {[%emt 00:00:44]} a2 {[%clk 00:02:04]} {[%emt
00:00:27]} 66. Re2+ {[%clk 00:13:23]} {[%emt 00:00:33]} Ka3 {[%clk 00:02:31]}
{[%emt 00:00:04]} 0-1